{"text_format":"1","workbook":"xlsx","n_sheets":1,"sheets":["Pressupost Ba"],"not_rendered":{"charts":0,"images":1,"macros":1,"external_links":0,"defined_names":6,"comments":1,"pivot_tables":0},"unopened":[],"bounds":{"document_bytes":16777216,"sheet_cells":100000,"rows_first":2000,"rows_last":500,"rows_between":2000,"halvings":0,"cell_chars":16384,"cell_head_chars":4096},"cells_cut":0,"cells_raw":0,"read":"whole","date_system":"1900"}

{"sheet":"Pressupost Ba","index":0,"n_rows":115,"n_cols":6,"rows_kept":115,"cut":false,"hidden":false,"merged":[[114,0,114,3],[99,0,99,3],[100,0,100,3],[101,0,101,3],[102,0,102,3],[103,0,103,3],[105,0,105,3],[106,0,106,3],[107,0,107,3],[109,0,109,3],[110,0,110,3],[112,0,112,3],[113,0,113,3],[108,0,108,2],[111,0,111,3],[104,0,104,3],[0,2,0,3],[1,2,1,3],[2,2,3,3],[4,2,4,3],[97,0,97,3],[2,0,3,1],[5,2,5,3]]}
[null,null,"Document bàsic 3"]
[null,null,"Àmbit temàtic \"B\": INTERCOOPERACIÓ"]
["CONVOCATÒRIA 2025 DEL PROGRAMA DE SUBVENCIONS DE L’AJUNTAMENT DE BARCELONA PER L’ENFORTIMENT DE L’ECONOMIA SOCIAL I SOLIDÀRIA I PER LA INTERCOOPERACIÓ EN L’ESTRATÈGIA #ESSBCN2030 - ENFORTIM L’ESS 2025\n",null,"Modalitat Ba: Intercooperació de 2n i major nivell: Projectes promoguts per organitzacions  representatives o referents de l'Economia Social i Solidària o de les finances ètiques de segon nivell i superior, que contribueixin al desplegament de l’Estratègia ESSBCN2030 de Barcelona i els objectius estratègics del PIESS 2024-2027, i tinguin per destinatàries a les seves organitzacions sòcies"]
[]
[null,null,"Atenció: Cal emplenar les cel·les en blanc i, si escau, afegir les files necessàries "]
[null,null,"Abans d'emplenar, consultar les anotacions a peu de pàgina"]
[]
["DADES BÀSIQUES"]
["Nom de la persona jurídica",null,null,null,null,"  "]
["NIF de la persona jurídica"]
["Nom del projecte subvencionable"]
["Import total del projecte subvencionable"]
["Import imputable a la subvenció municipal"]
["Import de l'aportació / Cofinançament de l'organització",{"$f":"$B$12-$B$13","v":0}]
["% de l'import sol·licitat respecte el total del projecte subvencionable",{"$f":"B13/B12","v":{"$error":"#DIV/0!"}},"* La quantia de la subvenció atorgada no superarà el 80% de la despesa total del projecte a subvencionar. "]
[]
["PREVISIÓ DE DESPESES DEL PROJECTE SUBVENCIONABLE"]
["Partides","Import imputable a la subvenció municipal","Import de l'aportació / Cofinançament de l'entitat","Import total del projecte"]
["D1. Retribucions i seguretat social (règim general) del personal propi vinculat directament i de forma significativa al projecte subvencionable (màxim 25% subvenció)",{"$f":"SUM(B20:B23)","v":0},{"$f":"SUM(C20:C23)","v":0},{"$f":"DespesesProjecte[[#This Row],[Import imputable a la subvenció municipal]]+DespesesProjecte[[#This Row],[Import de l''aportació / Cofinançament de l''entitat]]","v":0}]
[null,null,null,{"$f":"SUM(DespesesProjecte[[#This Row],[Import imputable a la subvenció municipal]],DespesesProjecte[[#This Row],[Import de l''aportació / Cofinançament de l''entitat]])","v":0}]
[null,null,null,{"$f":"SUM(DespesesProjecte[[#This Row],[Import imputable a la subvenció municipal]],DespesesProjecte[[#This Row],[Import de l''aportació / Cofinançament de l''entitat]])","v":0}]
[null,null,null,{"$f":"SUM(DespesesProjecte[[#This Row],[Import imputable a la subvenció municipal]],DespesesProjecte[[#This Row],[Import de l''aportació / Cofinançament de l''entitat]])","v":0}]
[null,null,null,{"$f":"SUM(DespesesProjecte[[#This Row],[Import imputable a la subvenció municipal]],DespesesProjecte[[#This Row],[Import de l''aportació / Cofinançament de l''entitat]])","v":0}]
["TOTAL DE DESPESES DEL PERSONAL\nMàxim 25% de l'import imputable a la subvenció municipal si es tracta de personal propi assignat al projecte",{"$f":"B19","v":0},{"$f":"C19","v":0},{"$f":"D19","v":0}]
["D2. Treballs realitzats per professionals i empreses externes directament vinculades a l’acompanyament de processos de l’organització i amb les seves associades vinculats a les accions subvencionades",{"$f":"SUM(B26:B28)","v":0},{"$f":"SUM(C26:C28)","v":0},{"$f":"SUM(DespesesProjecte[[#This Row],[Import imputable a la subvenció municipal]],DespesesProjecte[[#This Row],[Import de l''aportació / Cofinançament de l''entitat]])","v":0}]
[null,null,null,{"$f":"SUM(DespesesProjecte[[#This Row],[Import imputable a la subvenció municipal]],DespesesProjecte[[#This Row],[Import de l''aportació / Cofinançament de l''entitat]])","v":0}]
[null,null,null,{"$f":"SUM(DespesesProjecte[[#This Row],[Import imputable a la subvenció municipal]],DespesesProjecte[[#This Row],[Import de l''aportació / Cofinançament de l''entitat]])","v":0}]
[null,null,null,{"$f":"SUM(DespesesProjecte[[#This Row],[Import imputable a la subvenció municipal]],DespesesProjecte[[#This Row],[Import de l''aportació / Cofinançament de l''entitat]])","v":0}]
["D3. Lloguer de bens immobles directament vinculats al projecte subvencionable.",{"$f":"SUM(B30:B32)","v":0},{"$f":"SUM(C30:C32)","v":0},{"$f":"SUM(DespesesProjecte[[#This Row],[Import imputable a la subvenció municipal]],DespesesProjecte[[#This Row],[Import de l''aportació / Cofinançament de l''entitat]])","v":0}]
[null,null,null,{"$f":"SUM(DespesesProjecte[[#This Row],[Import imputable a la subvenció municipal]],DespesesProjecte[[#This Row],[Import de l''aportació / Cofinançament de l''entitat]])","v":0}]
[null,null,null,{"$f":"SUM(DespesesProjecte[[#This Row],[Import imputable a la subvenció municipal]],DespesesProjecte[[#This Row],[Import de l''aportació / Cofinançament de l''entitat]])","v":0}]
[null,null,null,{"$f":"SUM(DespesesProjecte[[#This Row],[Import imputable a la subvenció municipal]],DespesesProjecte[[#This Row],[Import de l''aportació / Cofinançament de l''entitat]])","v":0}]
["D4. Adquisició de materials i béns consumibles íntegrament imputables al projecte subvencionable.",{"$f":"SUM(B34:B36)","v":0},{"$f":"SUM(C34:C36)","v":0},{"$f":"SUM(DespesesProjecte[[#This Row],[Import imputable a la subvenció municipal]],DespesesProjecte[[#This Row],[Import de l''aportació / Cofinançament de l''entitat]])","v":0}]
[null,null,null,{"$f":"SUM(DespesesProjecte[[#This Row],[Import imputable a la subvenció municipal]],DespesesProjecte[[#This Row],[Import de l''aportació / Cofinançament de l''entitat]])","v":0}]
[null,null,null,{"$f":"SUM(DespesesProjecte[[#This Row],[Import imputable a la subvenció municipal]],DespesesProjecte[[#This Row],[Import de l''aportació / Cofinançament de l''entitat]])","v":0}]
[null,null,null,{"$f":"SUM(DespesesProjecte[[#This Row],[Import imputable a la subvenció municipal]],DespesesProjecte[[#This Row],[Import de l''aportació / Cofinançament de l''entitat]])","v":0}]
["D5. Publicitat i propaganda de les activitats directament vinculades al projecte subvencionable.",{"$f":"SUM(B38:B40)","v":0},{"$f":"SUM(C38:C40)","v":0},{"$f":"SUM(DespesesProjecte[[#This Row],[Import imputable a la subvenció municipal]],DespesesProjecte[[#This Row],[Import de l''aportació / Cofinançament de l''entitat]])","v":0}]
[null,null,null,{"$f":"SUM(DespesesProjecte[[#This Row],[Import imputable a la subvenció municipal]],DespesesProjecte[[#This Row],[Import de l''aportació / Cofinançament de l''entitat]])","v":0}]
[null,null,null,{"$f":"SUM(DespesesProjecte[[#This Row],[Import imputable a la subvenció municipal]],DespesesProjecte[[#This Row],[Import de l''aportació / Cofinançament de l''entitat]])","v":0}]
[null,null,null,{"$f":"SUM(DespesesProjecte[[#This Row],[Import imputable a la subvenció municipal]],DespesesProjecte[[#This Row],[Import de l''aportació / Cofinançament de l''entitat]])","v":0}]
["D6. Viatges i desplaçaments imputables a les activitats del projecte subvencionable (amb un límit del 7% de la subvenció).",{"$f":"SUM(B42:B44)","v":0},{"$f":"SUM(C42:C44)","v":0},{"$f":"SUM(DespesesProjecte[[#This Row],[Import imputable a la subvenció municipal]],DespesesProjecte[[#This Row],[Import de l''aportació / Cofinançament de l''entitat]])","v":0}]
[null,null,null,{"$f":"SUM(DespesesProjecte[[#This Row],[Import imputable a la subvenció municipal]],DespesesProjecte[[#This Row],[Import de l''aportació / Cofinançament de l''entitat]])","v":0}]
[null,null,null,{"$f":"SUM(DespesesProjecte[[#This Row],[Import imputable a la subvenció municipal]],DespesesProjecte[[#This Row],[Import de l''aportació / Cofinançament de l''entitat]])","v":0}]
[null,null,null,{"$f":"SUM(DespesesProjecte[[#This Row],[Import imputable a la subvenció municipal]],DespesesProjecte[[#This Row],[Import de l''aportació / Cofinançament de l''entitat]])","v":0}]
["D7. Despeses de l’informe d’auditoria (amb un límit màxim de 1.500 euros de la subvenció)",{"$f":"SUM(B46:B48)","v":0},{"$f":"SUM(C46:C48)","v":0},{"$f":"SUM(DespesesProjecte[[#This Row],[Import imputable a la subvenció municipal]],DespesesProjecte[[#This Row],[Import de l''aportació / Cofinançament de l''entitat]])","v":0}]
[null,null,null,{"$f":"SUM(DespesesProjecte[[#This Row],[Import imputable a la subvenció municipal]],DespesesProjecte[[#This Row],[Import de l''aportació / Cofinançament de l''entitat]])","v":0}]
[null,null,null,{"$f":"SUM(DespesesProjecte[[#This Row],[Import imputable a la subvenció municipal]],DespesesProjecte[[#This Row],[Import de l''aportació / Cofinançament de l''entitat]])","v":0}]
[null,null,null,{"$f":"SUM(DespesesProjecte[[#This Row],[Import imputable a la subvenció municipal]],DespesesProjecte[[#This Row],[Import de l''aportació / Cofinançament de l''entitat]])","v":0}]
["D8. Altres despeses que de manera justificada puguin imputar-se directament al projecte subvencionable.",{"$f":"SUM(B50:B52)","v":0},{"$f":"SUM(C50:C52)","v":0},{"$f":"SUM(DespesesProjecte[[#This Row],[Import imputable a la subvenció municipal]],DespesesProjecte[[#This Row],[Import de l''aportació / Cofinançament de l''entitat]])","v":0}]
[null,null,null,{"$f":"SUM(DespesesProjecte[[#This Row],[Import imputable a la subvenció municipal]],DespesesProjecte[[#This Row],[Import de l''aportació / Cofinançament de l''entitat]])","v":0}]
[null,null,null,{"$f":"SUM(DespesesProjecte[[#This Row],[Import imputable a la subvenció municipal]],DespesesProjecte[[#This Row],[Import de l''aportació / Cofinançament de l''entitat]])","v":0}]
[null,null,null,{"$f":"SUM(DespesesProjecte[[#This Row],[Import imputable a la subvenció municipal]],DespesesProjecte[[#This Row],[Import de l''aportació / Cofinançament de l''entitat]])","v":0}]
["TOTAL D'ALTRES DESPESES DIRECTES ",{"$f":"SUM(B25,B29,B33,B37,B41,B45,B49)","v":0},{"$f":"SUM(C25,C29,C33,C37,C41,C45,C49)","v":0},{"$f":"SUM(D25,D29,D33,D37,D41,D45,D49)","v":0}]
["TOTAL DESPESES DIRECTES (aquelles que s’identifiquen directament amb el projecte subvencionable)",{"$f":"SUM(B24,B53)","v":0},{"$f":"SUM(C24,C53)","v":0},{"$f":"SUM(D24,D53)","v":0}]
["I1. Personal de suport al projecte (nòmines i seguretat social)",{"$f":"SUM(B56:B58)","v":0},{"$f":"SUM(C56:C58)","v":0},{"$f":"SUM(DespesesProjecte[[#This Row],[Import imputable a la subvenció municipal]],DespesesProjecte[[#This Row],[Import de l''aportació / Cofinançament de l''entitat]])","v":0}]
[null,null,null,{"$f":"SUM(DespesesProjecte[[#This Row],[Import imputable a la subvenció municipal]],DespesesProjecte[[#This Row],[Import de l''aportació / Cofinançament de l''entitat]])","v":0}]
[null,null,null,{"$f":"SUM(DespesesProjecte[[#This Row],[Import imputable a la subvenció municipal]],DespesesProjecte[[#This Row],[Import de l''aportació / Cofinançament de l''entitat]])","v":0}]
[null,null,null,{"$f":"SUM(DespesesProjecte[[#This Row],[Import imputable a la subvenció municipal]],DespesesProjecte[[#This Row],[Import de l''aportació / Cofinançament de l''entitat]])","v":0}]
["I2. Assegurances",{"$f":"SUM(B60:B62)","v":0},{"$f":"SUM(C60:C62)","v":0},{"$f":"SUM(DespesesProjecte[[#This Row],[Import imputable a la subvenció municipal]],DespesesProjecte[[#This Row],[Import de l''aportació / Cofinançament de l''entitat]])","v":0}]
[null,null,null,{"$f":"SUM(DespesesProjecte[[#This Row],[Import imputable a la subvenció municipal]],DespesesProjecte[[#This Row],[Import de l''aportació / Cofinançament de l''entitat]])","v":0}]
[null,null,null,{"$f":"SUM(DespesesProjecte[[#This Row],[Import imputable a la subvenció municipal]],DespesesProjecte[[#This Row],[Import de l''aportació / Cofinançament de l''entitat]])","v":0}]
[null,null,null,{"$f":"SUM(DespesesProjecte[[#This Row],[Import imputable a la subvenció municipal]],DespesesProjecte[[#This Row],[Import de l''aportació / Cofinançament de l''entitat]])","v":0}]
["I3. Amortització",{"$f":"SUM(B64:B66)","v":0},{"$f":"SUM(C64:C66)","v":0},{"$f":"SUM(DespesesProjecte[[#This Row],[Import imputable a la subvenció municipal]],DespesesProjecte[[#This Row],[Import de l''aportació / Cofinançament de l''entitat]])","v":0}]
[null,null,null,{"$f":"SUM(DespesesProjecte[[#This Row],[Import imputable a la subvenció municipal]],DespesesProjecte[[#This Row],[Import de l''aportació / Cofinançament de l''entitat]])","v":0}]
[null,null,null,{"$f":"SUM(DespesesProjecte[[#This Row],[Import imputable a la subvenció municipal]],DespesesProjecte[[#This Row],[Import de l''aportació / Cofinançament de l''entitat]])","v":0}]
[null,null,null,{"$f":"SUM(DespesesProjecte[[#This Row],[Import imputable a la subvenció municipal]],DespesesProjecte[[#This Row],[Import de l''aportació / Cofinançament de l''entitat]])","v":0}]
["I4. Lloguer de béns immobles",{"$f":"SUM(B68:B70)","v":0},{"$f":"SUM(C68:C70)","v":0},{"$f":"SUM(DespesesProjecte[[#This Row],[Import imputable a la subvenció municipal]],DespesesProjecte[[#This Row],[Import de l''aportació / Cofinançament de l''entitat]])","v":0}]
[null,null,null,{"$f":"SUM(DespesesProjecte[[#This Row],[Import imputable a la subvenció municipal]],DespesesProjecte[[#This Row],[Import de l''aportació / Cofinançament de l''entitat]])","v":0}]
[null,null,null,{"$f":"SUM(DespesesProjecte[[#This Row],[Import imputable a la subvenció municipal]],DespesesProjecte[[#This Row],[Import de l''aportació / Cofinançament de l''entitat]])","v":0}]
[null,null,null,{"$f":"SUM(DespesesProjecte[[#This Row],[Import imputable a la subvenció municipal]],DespesesProjecte[[#This Row],[Import de l''aportació / Cofinançament de l''entitat]])","v":0}]
["I5. Adquisició de materials i béns consumibles parcialment imputables al projecte",{"$f":"SUM(B72:B74)","v":0},{"$f":"SUM(C72:C74)","v":0},{"$f":"SUM(DespesesProjecte[[#This Row],[Import imputable a la subvenció municipal]],DespesesProjecte[[#This Row],[Import de l''aportació / Cofinançament de l''entitat]])","v":0}]
[null,null,null,{"$f":"SUM(DespesesProjecte[[#This Row],[Import imputable a la subvenció municipal]],DespesesProjecte[[#This Row],[Import de l''aportació / Cofinançament de l''entitat]])","v":0}]
[null,null,null,{"$f":"SUM(DespesesProjecte[[#This Row],[Import imputable a la subvenció municipal]],DespesesProjecte[[#This Row],[Import de l''aportació / Cofinançament de l''entitat]])","v":0}]
[null,null,null,{"$f":"SUM(DespesesProjecte[[#This Row],[Import imputable a la subvenció municipal]],DespesesProjecte[[#This Row],[Import de l''aportació / Cofinançament de l''entitat]])","v":0}]
["I6. Manteniment d’edificis i/o instal·lacions",{"$f":"SUM(B76:B78)","v":0},{"$f":"SUM(C76:C78)","v":0},{"$f":"SUM(DespesesProjecte[[#This Row],[Import imputable a la subvenció municipal]],DespesesProjecte[[#This Row],[Import de l''aportació / Cofinançament de l''entitat]])","v":0}]
[null,null,null,{"$f":"SUM(DespesesProjecte[[#This Row],[Import imputable a la subvenció municipal]],DespesesProjecte[[#This Row],[Import de l''aportació / Cofinançament de l''entitat]])","v":0}]
[null,null,null,{"$f":"SUM(DespesesProjecte[[#This Row],[Import imputable a la subvenció municipal]],DespesesProjecte[[#This Row],[Import de l''aportació / Cofinançament de l''entitat]])","v":0}]
[null,null,null,{"$f":"SUM(DespesesProjecte[[#This Row],[Import imputable a la subvenció municipal]],DespesesProjecte[[#This Row],[Import de l''aportació / Cofinançament de l''entitat]])","v":0}]
["I7. Comunicacions (telèfon, correus, connexió a internet)",{"$f":"SUM(B80:B82)","v":0},{"$f":"SUM(C80:C82)","v":0},{"$f":"SUM(DespesesProjecte[[#This Row],[Import imputable a la subvenció municipal]],DespesesProjecte[[#This Row],[Import de l''aportació / Cofinançament de l''entitat]])","v":0}]
[null,null,null,{"$f":"SUM(DespesesProjecte[[#This Row],[Import imputable a la subvenció municipal]],DespesesProjecte[[#This Row],[Import de l''aportació / Cofinançament de l''entitat]])","v":0}]
[null,null,null,{"$f":"SUM(DespesesProjecte[[#This Row],[Import imputable a la subvenció municipal]],DespesesProjecte[[#This Row],[Import de l''aportació / Cofinançament de l''entitat]])","v":0}]
[null,null,null,{"$f":"SUM(DespesesProjecte[[#This Row],[Import imputable a la subvenció municipal]],DespesesProjecte[[#This Row],[Import de l''aportació / Cofinançament de l''entitat]])","v":0}]
["I8. Despeses financeres",{"$f":"SUM(B84:B86)","v":0},{"$f":"SUM(C84:C86)","v":0},{"$f":"SUM(DespesesProjecte[[#This Row],[Import imputable a la subvenció municipal]],DespesesProjecte[[#This Row],[Import de l''aportació / Cofinançament de l''entitat]])","v":0}]
[null,null,null,{"$f":"SUM(DespesesProjecte[[#This Row],[Import imputable a la subvenció municipal]],DespesesProjecte[[#This Row],[Import de l''aportació / Cofinançament de l''entitat]])","v":0}]
[null,null,null,{"$f":"SUM(DespesesProjecte[[#This Row],[Import imputable a la subvenció municipal]],DespesesProjecte[[#This Row],[Import de l''aportació / Cofinançament de l''entitat]])","v":0}]
[null,null,null,{"$f":"SUM(DespesesProjecte[[#This Row],[Import imputable a la subvenció municipal]],DespesesProjecte[[#This Row],[Import de l''aportació / Cofinançament de l''entitat]])","v":0}]
["I9. Subministraments ",{"$f":"SUM(B88:B90)","v":0},{"$f":"SUM(C88:C90)","v":0},{"$f":"SUM(DespesesProjecte[[#This Row],[Import imputable a la subvenció municipal]],DespesesProjecte[[#This Row],[Import de l''aportació / Cofinançament de l''entitat]])","v":0}]
[null,null,null,{"$f":"SUM(DespesesProjecte[[#This Row],[Import imputable a la subvenció municipal]],DespesesProjecte[[#This Row],[Import de l''aportació / Cofinançament de l''entitat]])","v":0}]
[null,null,null,{"$f":"SUM(DespesesProjecte[[#This Row],[Import imputable a la subvenció municipal]],DespesesProjecte[[#This Row],[Import de l''aportació / Cofinançament de l''entitat]])","v":0}]
[null,null,null,{"$f":"SUM(DespesesProjecte[[#This Row],[Import imputable a la subvenció municipal]],DespesesProjecte[[#This Row],[Import de l''aportació / Cofinançament de l''entitat]])","v":0}]
["I10. Treball realitzat per altres empreses, parcialment imputables al projecte (neteja, seguretat...)",{"$f":"SUM(B92:B94)","v":0},{"$f":"SUM(C92:C94)","v":0},{"$f":"SUM(DespesesProjecte[[#This Row],[Import imputable a la subvenció municipal]],DespesesProjecte[[#This Row],[Import de l''aportació / Cofinançament de l''entitat]])","v":0}]
[null,null,null,{"$f":"SUM(DespesesProjecte[[#This Row],[Import imputable a la subvenció municipal]],DespesesProjecte[[#This Row],[Import de l''aportació / Cofinançament de l''entitat]])","v":0}]
[null,null,null,{"$f":"SUM(DespesesProjecte[[#This Row],[Import imputable a la subvenció municipal]],DespesesProjecte[[#This Row],[Import de l''aportació / Cofinançament de l''entitat]])","v":0}]
[null,null,null,{"$f":"SUM(DespesesProjecte[[#This Row],[Import imputable a la subvenció municipal]],DespesesProjecte[[#This Row],[Import de l''aportació / Cofinançament de l''entitat]])","v":0}]
["TOTAL DESPESES INDIRECTES (es podran assignar al projecte subvencionable fent sevir un percentatge d’assignació) - Màxim 10% de l’import imputable a la subvenció municipal",{"$f":"SUM(B55,B59,B63,B67,B71,B75,B79,B83,B87,B91)","v":0},{"$f":"SUM(C55,C59,C63,C67,C71,C75,C79,C83,C87,C91)","v":0},{"$f":"SUM(D55,D59,D63,D67,D71,D75,D79,D83,D87,D91)","v":0}]
["TOTAL DE DESPESES PREVISTES",{"$f":"SUM(B95,B54)","v":0},{"$f":"SUM(C95,C54)","v":0},{"$f":"SUM(D95,D54)","v":0}]
[]
["Atenció: En cas de persones jurídiques no signeu aquest document ara.\nMés endavant signareu digitalment aquest document"]
[]
["Modalitat Ba: Intercooperació de 2n i major nivell: Projectes promoguts per organitzacions  representatives o referents de l'Economia Social i Solidària o de les finances ètiques de segon nivell i superior, que contribueixin al desplegament de l’Estratègia ESSBCN2030 de Barcelona i els objectius estratègics del PIESS 2024-2027, i tinguin per destinatàries a les seves organitzacions sòcies"]
[" 1. La quantia de la subvenció atorgada no superarà el 80% de la despesa total del projecte a subvencionar. "]
[" 2. L'import màxim de subvenció per a la modalitat Ba és 25.000€."]
[" 3. En el cas que la sol·licitud presentada sobrepassi l’import màxim, es considerarà com a import sol·licitat el màxim de l'establert a la convocatòria."]
[" 4. Es limita amb un màxim del 25% l'import de la subvenció per a despeses de personal propi assignat al projecte subvencionat (retribucions i seguretat social- règim general o autònoms). "]
[" 5. En el cas de lloguers d’immobles les despeses de lloguer s’imputaran a les despeses indirectes amb el límit establert per aquestes despeses indirectes."]
[" 6. Són imputables en aquesta modalitat les despeses indirectes, detallades en l’apartat 13.3. de les bases reguladores; amb un màxim del 10% de l'import de la subvenció.\nEl caràcter subvencionable de la despesa d'amortització estarà subjecte a les condicions següents:\n> Que les subvencions no hagin contribuït a la compra dels béns.\n> Que l'amortització es calculi de conformitat amb les normes de comptabilitat generalment acceptades.\n> Que el cost es refereixi al període subvencionable.\n\n"]
[" 7. Quan s'hagi de fer despeses de més de 15.000 €, sense IVA, en el cas de prestacions de serveis o lliurament de béns i per aquelles despeses de més de 40.000 €, sense IVA, en el cas d'execució d'obres, s’hauran d'incorporar tres pressupostos sol·licitats i argumentar el motiu de l'adjudicació en el cas de no ser la proposta més avantatjosa econòmicament."]
[" 8. Per les subvencions atorgades per import igual o superior a 20.000 € és obligatori un informe d'auditoria per a la justificació. L'import d'aquest informe es considera despesa subvencionable, amb un límit màxim de 1.500 €."]
[" 9. Viatges i desplaçaments imputables a les activitats del projecte subvencionable (amb un límit del 7% de la subvenció)"]
[" 10. En cap cas es consideraran despeses subvencionables:\n> Els impostos indirectes quan siguin susceptibles de recuperació o compensació.\n> Les despeses d'inversió, incloses les adquisicions de béns mobles.\n> Les despeses realitzades amb data anterior a l'inici del projecte i data posterior a la finalització del projecte.\n> Altres despeses que s'indiquin a la convocatòria."]
[" 11. La retribució de les persones contractades en el marc del projecte subvencionat no pot ser inferior al Salari Mínim Interprofessional (SMI), ni a l'estipulada al corresponent conveni o marc normatiu de referència (punt 7 de les bases 2025: requisits dels projectes)."]
[" 12, Els materials produïts de difusió, estudis, informes o materials didàctics utilitzats, etc. en el cas de tractar-se de despesa elegible de la subvenció, hauran de tenir llicència Creative Commons -Compartir Igual- (share a like)  i no podrà tenir la condició –Sense Obres Derivades- (no derivate Works)."]
[" 13. Els projectes subvencionats han de fomentar activitats d'interès públic o social, les quals han de ser gratuïtes per a les persones participants o en cap cas el preu ha de suposar un obstacle per a la seva participació, buscant altres formes d'accés per a persones amb dificultats econòmiques. En el cas que hi hagi algun tipus de lucre, haurà de revertir en les pròpies activitats subvencionades."]
[" 14. L'Ajuntament de Barcelona i les seves entitats municipals en cap cas subvencionaran el mateix projecte, executat durant el mateix període, per cap altre procediment de concessió que no sigui el regulat per les bases reguladores."]
[" 15. El/la beneficiari/ària no podrà alterar en cap cas el destí de les subvencions concedides."]